Cogmind - Beta 12 @@@ ROGUE MODE // 2024.01.05 @ 15:46:09 Player: hanzu Result: Destroyed by L-41 Fighter with Axe Performance ------------- Evolutions (3) 1500 Regions Visited (6) 1200 Robots Destroyed (124) 620 Value Destroyed (4259) 4259 Prototype IDs (13) 260 Alien Tech Used (0) 0 Bonus (125) 125 TOTAL SCORE: 7964 Bonus ------- High Alert Combat Kills 293 Follower Combat Kills 35 Friendly Fire -203 Cogmind --------- Core Integrity 0/700 Matter 47/300 Energy 30/100 System Corruption 3% Temperature Cool (0) Movement Core (100) Ox1 Location -7/Factory Parts ------- > --- POWER (1) -------- (None) > --- PROPULSION (4) --- (None) > --- UTILITY (6) ------ Machine Analyzer Hacking Suite > --- WEAPON (2) ------- Mini Assault Cannon > --- INVENTORY (5) ---- Carbon-fiber Leg Seismic Detector System Restoration Module Advanced Assault Cannon Peak State ------------ > --- POWER ------------ Light Nuclear Core > --- PROPULSION ------- Improved Carbon-fiber Leg Improved Titanium Leg Improved Titanium Leg Improved Titanium Leg > --- UTILITY ---------- High-capacity Storage Unit Machine Analyzer Improved Medium Armor Plating Medium Reactive Plating Hacking Suite System Shield > --- WEAPON ----------- Mini Assault Cannon Mini Assault Cannon > --- INVENTORY -------- Light Deuterium Engine Carbon-fiber Leg Carbon-fiber Leg Improved Cooling System High-capacity Matter Pod Experimental Sensor Array Improved Signal Interpreter Seismic Detector Improved Medium Armor Plating System Restoration Module Improved Spread Laser Improved Spread Laser Ion Cannon Ion Cannon Gauss Rifle Advanced Assault Cannon Grenade Launcher Rocket Launcher Rocket Launcher Heavy Flail [Rating: 53] Favorites ----------- Power Ion Engine Engine Ion Engine Power Core Light Nuclear Core Propulsion Improved Aluminum Leg Treads Light Treads Leg Improved Aluminum Leg Utility High-capacity Storage Unit Device Seismic Detector Storage High-capacity Storage Unit Processor Machine Analyzer Hackware Hacking Suite Protection Hardened Medium Armor Plating Weapon Mini Assault Cannon Energy Gun Particle Gun Energy Cannon Plasma Cannon Ballistic Gun Light Assault Rifle Ballistic Cannon Mini Assault Cannon Launcher Rocket Launcher Impact Weapon Heavy Flail Build | -11 -10 -10 -10 -9 -8 -7 ------- Run | Jun Mat Min Exi Min Mat Fac Slots Evolved 6 | . . . . . 4 2 Power . | . . . . . . . Propulsion 2 | . . . . . 2 . Utility 4 | . . . . . 2 2 Weapon . | . . . . . . . Parts Attached 145 | 6 17 . 1 3 37 81 Power 10 | 1 1 . . 1 1 6 Engine 6 | 1 1 . . 1 1 2 Core 4 | . . . . . . 4 Reactor . | . . . . . . . Propulsion 29 | 2 4 . . . 7 16 Treads 4 | 2 2 . . . . . Leg 25 | . 2 . . . 7 16 Wheel . | . . . . . . . Hover . | . . . . . . . Flight . | . . . . . . . Utility 62 | 1 7 . 1 1 12 40 Device 33 | . 5 . . 1 7 20 Storage 5 | 1 2 . 1 . 1 . Processor 1 | . . . . . . 1 Hackware 4 | . . . . . . 4 Protection 19 | . . . . . 4 15 Artifact . | . . . . . . . Weapon 44 | 2 5 . . 1 17 19 Energy Gun 7 | . 3 . . . 2 2 Energy Cannon 2 | . . . . 1 . 1 Ballistic Gun 3 | 2 . . . . 1 . Ballistic Cannon 19 | . 2 . . . 8 9 Launcher 9 | . . . . . 5 4 Special Weapon . | . . . . . . . Impact Weapon 4 | . . . . . 1 3 Slashing Weapon . | . . . . . . . Piercing Weapon . | . . . . . . . Special Melee Weapon . | . . . . . . . Unidentified Prototypes 4 | . . . . . 2 2 Parts Lost 40 | . 1 . . . 11 28 Power 6 | . 1 . . . 1 4 Propulsion 16 | . . . . . 5 11 Utility 11 | . . . . . 1 10 Weapon 7 | . . . . . 4 3 Highest Loss Streak 9 | . 1 . . . 4 9 To Critical Strikes . | . . . . . . . Average Slot Usage (%) 97 | . 98 100 100 100 98 95 Engine 8 | . 14 14 14 14 8 2 Core 1 | . . . . . . 4 Treads 3 | . 17 . . . . . Leg 25 | . 10 28 28 28 35 27 Device 14 | . 13 14 14 14 18 13 Storage 10 | . 13 14 14 14 9 7 Processor 1 | . . . . . . 3 Hackware 5 | . . . . . . 11 Protection 4 | . . . . . 8 7 Energy Gun 5 | . 13 14 14 2 5 . Energy Cannon 2 | . . . . 11 1 1 Ballistic Gun 1 | . 6 . . . . . Ballistic Cannon 11 | . 8 14 14 14 10 12 Naked Turns . | . . . . . . . Heaviest Build 80 | 10 32 32 52 53 62 80 Greatest Support 78 | 40 40 26 26 26 54 78 Greatest Overweight (x) 15 | . 2 1 1 2 15 1 Average Overweight (x) . | . . 1 1 1 . . Largest Inventory Capacity 20 | 8 15 15 20 20 20 20 Average Capacity 18 | 7 14 15 15 20 20 19 Most Carried 20 | 4 15 15 15 18 20 20 Average Carried 15 | 1 9 14 15 16 17 18 Final Capacity 20 | 8 15 15 20 20 20 5 Final Carried 18 | 4 15 15 15 18 18 4 Class Distribution -------------------- 49% | Mutant 26% | Scavenger-Mutant 24% | Hacker-Mutant Dominant Class ---------------- Mutant | -10/Materials Mutant | -10/Mines Mutant | -10/Exiles Mutant | -9/Mines Scavenger-Mutant | -8/Materials Hacker-Mutant | -7/Factory Resources | -11 -10 -10 -10 -9 -8 -7 ----------- Run | Jun Mat Min Exi Min Mat Fac Matter Collected 3844 | 217 474 227 . 68 549 2309 Remotely . | . . . . . . . Salvage Created 3823 | 100 1041 231 . 78 770 1603 Parts 239 | 9 71 12 . 5 50 92 Haulers Intercepted 4 | . 2 . . . . 2 Recyclers Shooed . | . . . . . . . Parts Field Recycled . | . . . . . . . Retrieved Matter . | . . . . . . . Parts Self-Destructed . | . . . . . . . Prevented . | . . . . . . . Kills | -11 -10 -10 -10 -9 -8 -7 ------- Run | Jun Mat Min Exi Min Mat Fac Combat Hostiles Destroyed 92 | . 24 4 . . 23 41 Guns 20 | . 15 1 . . 4 . Cannons 58 | . 9 3 . . 10 36 AOE 14 | . . . . . 9 5 Classes Destroyed 14 | 2 6 . . 1 2 3 Worker 2 | . . . . 1 . 1 Builder 8 | . 3 . . . 3 2 Tunneler 3 | 2 . . . . 1 . Hauler 4 | . 2 . . . . 2 Recycler 5 | 1 . 2 . . . 2 Mechanic 3 | . . . . . . 3 Operator 4 | . 3 . . . 1 . Watcher 3 | . 2 . . . . 1 Swarmer 9 | . 3 2 . . 4 . Grunt 59 | . 21 2 . . 14 22 Duelist 1 | . . . . . 1 . Sentry 10 | . . . . . 4 6 Hunter 5 | . . . . . . 5 Programmer 8 | . . . . . . 8 Thug 1 | . . . . 1 . . Best Kill Streak 6 | 3 6 2 . 1 6 4 Combat Bots Only 6 | . 6 2 . . 6 4 Max Kills in Single Turn 2 | 1 1 1 . 1 2 2 Gunslinging . | . . . . . . . Exploded 2 | . . . . . 2 2 Melee . | . . . . . . . Uniques/NPCs Destroyed . | . . . . . . . Combat | -11 -10 -10 -10 -9 -8 -7 -------- Run | Jun Mat Min Exi Min Mat Fac Damage Taken 7599 | . 542 71 . . 1877 5109 Core 1027 | . 99 . . . 228 700 Absorbed by Shields . | . . . . . . . Regen/Repaired (Parts) 235 | . 205 . . . . 30 Core Remaining (%) 72 | 100 . . . 60 58 . Volleys Fired 351 | 13 88 12 . 7 67 164 Largest 2 | 2 2 2 . 2 2 2 Hottest 130 | 40 130 100 . 103 110 128 Shots Fired 642 | 26 174 24 . 14 105 299 Gun 201 | 26 140 12 . . 23 . Cannon 423 | . 34 12 . 14 72 291 Launcher 18 | . . . . . 10 8 Special . | . . . . . . . Kinetic 460 | 26 116 12 . 7 62 237 Thermal 156 | . 50 12 . 7 33 54 Explosive 18 | . . . . . 10 8 Electromagnetic 8 | . 8 . . . . . Robot Hit Streak 18 | 4 18 8 . 6 12 10 Robot Miss Streak 5 | 3 4 1 . 1 3 5 Penetration Max . | . . . . . . . Secondary Targets 3 | . 3 . . . . . Max Gunslinging Chain 1 | . 1 . . . . . Shots Hit Robots 399 | 15 108 17 . 9 69 181 Core Hits 198 | 7 48 8 . 4 46 85 Critical Kills . | . . . . . . . Critical Parts Destroyed 2 | . 2 . . . . . Critical Strikes 25 | . 7 1 . . 7 10 Burn 9 | . 4 1 . . 4 . Destroy 2 | . 2 . . . . . Blast 14 | . 1 . . . 3 10 Melee Attacks 11 | . . . . . 6 5 Impact 11 | . . . . . 6 5 Slashing . | . . . . . . . Piercing . | . . . . . . . Sneak Attacks 1 | . . . . . 1 . Combat Hostiles . | . . . . . . . Follow-up Attacks . | . . . . . . . Damage Inflicted 10050 | 142 1391 286 . 171 2273 5787 Guns 1588 | 142 993 128 . . 325 . Cannons 6717 | . 398 158 . 171 900 5090 Explosions 1651 | . . . . . 974 677 Melee 74 | . . . . . 74 . Ramming 20 | . . . . . . 20 Kinetic 6086 | 142 856 158 . 111 735 4084 Thermal 2125 | . 441 128 . 60 490 1006 Explosive 1608 | . . . . . 967 641 Electromagnetic 137 | . 94 . . . 7 36 Impact 74 | . . . . . 74 . Slashing . | . . . . . . . Piercing . | . . . . . . . Highest Corruption 7 | . . . . . 7 3 Average Corruption 2 | . . . . . 7 1 Corruption Purged 3 | . . . . . . 3 Corruption Blocked . | . . . . . . . Effects 29 | . . . . . 15 14 Message Errors 5 | . . . . . 3 2 Matter Fused 7 | . . . . . 4 3 Heat Flow Errors 3 | . . . . . 2 1 Energy Discharges 5 | . . . . . 2 3 Parts Fused 1 | . . . . . . 1 Data Loss (minor) 4 | . . . . . 2 2 Data Loss (major) 1 | . . . . . . 1 Misfires 1 | . . . . . 1 . Weapon Failures 2 | . . . . . 1 1 Overload Shots . | . . . . . . . Overflow Damage 176 | . . . . 1 44 131 Projectiles 70 | . . . . 1 . 69 Explosions 72 | . . . . . 10 62 Melee 34 | . . . . . 34 . Knockbacks 46 | . 2 1 . 1 10 32 Impact 1 | . . . . . 1 . Kinetic 44 | . 2 1 . 1 8 32 Secondary 1 | . . . . . 1 . Self-Inflicted Damage 49 | . . . . . 24 25 Shots 3 | . . . . . 1 2 Rammed . | . . . . . . . Targets Rammed 5 | . . . . . . 5 Kicked 5 | . . . . . . 5 Crushed . | . . . . . . . Highest Temperature 395 | . 270 42 . 126 303 395 Average Temperature 75 | . 42 16 . 53 91 91 Received Heat Transfer 2805 | . 264 15 . . 828 1698 Effects 7 | . . . . . 6 1 Shutdowns 1 | . . . . . . 1 Energy Bleed 1 | . . . . . 1 . Interference 5 | . . . . . 5 . Siege Activations . | . . . . . . . Robots Corrupted . | . . . . . . . Combat Hostiles . | . . . . . . . Parts Fried 1 | . . . . . 1 . Impact Corruptions 2 | . . . . . 2 . Robots Melted . | . . . . . . . Combat Hostiles . | . . . . . . . Parts Melted 9 | . 1 1 . . 1 6 Heat Transferred 4934 | . 1332 370 . 111 1221 1900 Parts Sabotaged . | . . . . . . . Parts Stolen . | . . . . . . . Parts Stripped . | . . . . . . . Power Chain Reactions . | . . . . . . . Missiles Intercepted . | . . . . . . . Alert | -11 -10 -10 -10 -9 -8 -7 ------- Run | Jun Mat Min Exi Min Mat Fac Peak Influence 862 | 15 444 136 . 5 319 862 Initial 131 | . 9 131 . . . 108 Average 234 | 3 254 103 . . 173 337 Maximum Alert Level 3 | . 2 . . . 1 3 Low Security (%) 46 | 100 31 100 . 100 45 25 Level 1 35 | . 59 . . . 54 37 Level 2 14 | . 8 . . . . 29 Level 3 3 | . . . . . . 7 Level 4 . | . . . . . . . Level 5 . | . . . . . . . High Security . | . . . . . . . Max Security . | . . . . . . . Squads Dispatched 34 | . 8 . . . 3 23 Investigation 15 | . 5 . . . 3 7 Extermination 7 | . . . . . . 7 Reinforcement 8 | . 3 . . . . 5 Assault . | . . . . . . . Garrison 4 | . . . . . . 4 Intercept . | . . . . . . . Searches Triggered . | . . . . . . . Construction Impeded 1 | . . . . . . 1 Haulers Reinforced 2 | . . . . . . 2 Active Scanning Responses . | . . . . . . . Cargo Convoy Interrupts . | . . . . . . . Stealth | -11 -10 -10 -10 -9 -8 -7 --------- Run | Jun Mat Min Exi Min Mat Fac Distress Signals 6 | . 2 . . . . 4 Communications Jammed . | . . . . . . . Distress Signals . | . . . . . . . Times Spotted 124 | . 33 4 . . 26 61 Peak Tracking Total 6 | . 4 2 . . 6 6 Tactical Retreats 7 | . . 1 . . 2 4 Traps | -11 -10 -10 -10 -9 -8 -7 ------- Run | Jun Mat Min Exi Min Mat Fac Traps Triggered 9 | . 3 . . . 1 5 Indirectly . | . . . . . . . Trap Hack Attempts . | . . . . . . . Triggered . | . . . . . . . Disarmed . | . . . . . . . Reprogrammed . | . . . . . . . Reused . | . . . . . . . Traps Extracted . | . . . . . . . Installed . | . . . . . . . Triggered . | . . . . . . . Machines | -11 -10 -10 -10 -9 -8 -7 ---------- Run | Jun Mat Min Exi Min Mat Fac Machines Disabled 13 | . 3 . . . 2 8 Max in Single Turn 1 | . 1 . . . 1 1 Garrison Access 1 | . . . . . . 1 Machines Repaired . | . . . . . . . Machines Sabotaged . | . . . . . . . Overloaded Fab Kills . | . . . . . . . Hacking | -11 -10 -10 -10 -9 -8 -7 --------- Run | Jun Mat Min Exi Min Mat Fac Machines Accessed 35 | . 6 . 1 . 8 20 Terminals 17 | . 5 . . . 6 6 Fabricators 3 | . . . . . . 3 Repair Stations 4 | . 1 . . . . 3 Recycling Units 1 | . . . . . 1 . Scanalyzers 5 | . . . . . 1 4 Garrison Access 4 | . . . . . . 4 Total Hacks 109 | . 25 . 1 . 21 62 Successful 57 | . 16 . 1 . 10 30 Failed 52 | . 9 . . . 11 32 Catastrophic 11 | . 3 . . . 2 6 Database Lockouts . | . . . . . . . Manual 50 | . 14 . . . 12 24 Terminals 55 | . 19 . . . 18 18 Fabricators 13 | . . . . . . 13 Repair Stations 14 | . 6 . . . . 8 Recycling Units 1 | . . . . . 1 . Scanalyzers 15 | . . . . . 2 13 Garrison Access 10 | . . . . . . 10 Terminal Hacks 14 | . 5 . 1 . 4 4 Record 1 | . . . 1 . . . Part Schematic 1 | . . . . . . 1 Robot Analysis 5 | . 3 . . . 2 . Prototype ID Bank 3 | . 2 . . . . 1 Terminal Index 1 | . . . . . . 1 Unreport Threat 1 | . . . . . 1 . Zone Layout 2 | . . . . . 1 1 Fabricator Hacks 2 | . . . . . . 2 Load Schematic 1 | . . . . . . 1 Build 1 | . . . . . . 1 Repair Station Hacks 10 | . 6 . . . . 4 Scan Component 5 | . 3 . . . . 2 Repair 5 | . 3 . . . . 2 Recycling Unit Hacks . | . . . . . . . Scanalyzer 9 | . . . . . 2 7 Insert Component 5 | . . . . . 1 4 Analyze 4 | . . . . . 1 3 Garrison Access Hacks 1 | . . . . . . 1 Seal Access 1 | . . . . . . 1 Unauthorized Hacks 21 | . 5 . . . 4 12 Terminals 13 | . 5 . . . 4 4 Botnet 8 | . 3 . . . 3 2 Operators 2 | . 1 . . . . 1 Search 3 | . 1 . . . 1 1 Fabricators 2 | . . . . . . 2 Prioritize 1 | . . . . . . 1 Liberate 1 | . . . . . . 1 Repair Stations . | . . . . . . . Recycling Units . | . . . . . . . Scanalyzers . | . . . . . . . Garrison Access 6 | . . . . . . 6 Broadcast 1 | . . . . . . 1 Decoy 1 | . . . . . . 1 Reprogram 2 | . . . . . . 2 Intercept 1 | . . . . . . 1 Watchers 1 | . . . . . . 1 Data Cores Recovered 1 | . . . . . 1 . Used . | . . . . . . . Hacking Detections 32 | . 6 . . . 8 18 Full Trace Events 8 | . 2 . . . 1 5 Feedback Events . | . . . . . . . Feedback Blocked . | . . . . . . . Robot Schematics Acquired . | . . . . . . . Robots Built . | . . . . . . . Authchips . | . . . . . . . Time . | . . . . . . . Total Robot Build Rating . | . . . . . . . Part Schematics Acquired 5 | . . . . . 1 4 Parts Built 1 | . . . . . . 1 Authchips . | . . . . . . . Time 36 | . . . . . . 36 Total Part Build Rating 3 | . . . . . . 3 Parts Repaired 5 | . 3 . . . . 2 Time 240 | . 78 . . . . 162 Parts Recycled . | . . . . . . . Recycled Matter . | . . . . . . . Retrieved Matter . | . . . . . . . Retrieved Components . | . . . . . . . Parts Scanalyzed 5 | . . . . . 1 4 Part Schematics Acquired 4 | . . . . . 1 3 Parts Damaged . | . . . . . . . Bothacking | -11 -10 -10 -10 -9 -8 -7 ------------ Run | Jun Mat Min Exi Min Mat Fac Used RIF Installer . | . . . . . . . Robots Hacked . | . . . . . . . Non-combat . | . . . . . . . Combat . | . . . . . . . Robot Hacks Applied . | . . . . . . . Relay Couplers Released . | . . . . . . . Fabnet Peak Effective % . | . . . . . . . Robots Rewired . | . . . . . . . Allies Hacked 2 | . . . . . . 2 Hacks Repelled . | . . . . . . . Allies | -11 -10 -10 -10 -9 -8 -7 -------- Run | Jun Mat Min Exi Min Mat Fac Total Allies 1 | . . . . . . 1 Largest Group 1 | . . . . . . 1 Highest-Rated Group 32 | . . . . . . 32 Highest-Rated Ally 32 | . . . . . . 32 Total Orders . | . . . . . . . Ally Attacks 2 | . . . . . . 2 Total Damage 101 | . . . . . . 101 Kills 1 | . . . . . . 1 Allies Corrupted . | . . . . . . . Allies Melted . | . . . . . . . Intel | -11 -10 -10 -10 -9 -8 -7 ------- Run | Jun Mat Min Exi Min Mat Fac Robot Analysis Total 5 | . 3 . . . 2 . Derelict Logs Recovered 4 | . . 2 . 2 . . Drone Launches . | . . . . . . . Drone Recoveries . | . . . . . . . Exploration | -11 -10 -10 -10 -9 -8 -7 ------------- Run | Jun Mat Min Exi Min Mat Fac Turns Passed 8685 | 119 1572 878 359 897 1080 3780 Spaces Moved 3969 | 49 638 435 189 425 420 1813 Core 12 | 6 . . . . 1 5 Treads 435 | 43 392 . . . . . Legs 3522 | . 246 435 189 425 419 1808 Wheels . | . . . . . . . Hover . | . . . . . . . Flight . | . . . . . . . Fastest Speed 50 | 50 160 190 190 190 120 50 Average Speed 171 | 146 171 190 190 200 186 155 Slowest Speed 800 | 160 260 190 190 260 800 200 Overloaded Moves . | . . . . . . . Propulsion Burnouts . | . . . . . . . Robots Hopped . | . . . . . . . Cave-ins Triggered 1 | . . . . . 1 . Exploration Rate (%) 58 | 4 95 82 54 98 30 46 Regions Visited 6 Branch Regions 3 Pre-discovered Areas 2 | . . . 1 1 . . Known Exits Taken . | . . . . . . . Unknown Exits Taken 6 | 1 1 1 1 1 1 . Scrap Searched 4 | . . 2 . 2 . . Spaces Dug 11 | . . . . . 3 8 Terrain Destroyed 157 | . . . . . 89 68 Melee 8 | . . . . . 3 5 Projectile 49 | . . . . . 5 44 AOE 100 | . . . . . 81 19 Terrain Rammed . | . . . . . . . Walls Destroyed . | . . . . . . . Machines Disabled . | . . . . . . . Actions | -11 -10 -10 -10 -9 -8 -7 --------- Run | Jun Mat Min Exi Min Mat Fac Total 5196 | 73 960 466 190 456 595 2456 Wait 549 | 2 173 12 . 17 31 314 Move 3963 | 48 637 434 188 424 419 1813 Hop . | . . . . . . . Pick Up 106 | 4 28 4 . 4 24 42 Fast Attach 14 | 6 2 . . . 1 5 Attach 48 | . 6 . . . 16 26 Detach 4 | . 2 . . . . 2 Swap 83 | . 9 . 1 3 20 50 Drop 62 | . 15 4 1 1 11 30 Fire 351 | 13 88 12 . 7 67 164 Melee 11 | . . . . . 6 5 Ram . | . . . . . . . Kick 5 | . . . . . . 5 Crush . | . . . . . . . Escape Stasis . | . . . . . . . Rewire . | . . . . . . . Trap . | . . . . . . . Miscellaneous . | . . . . . . . Route ------- -11/Junkyard -10/Materials (discovered 5 exits: [*Mat x3] / [*Min x2]) -10/Mines (discovered 3 exits: [*Mat x2] / *Exi) -10/Exiles -9/Mines (discovered 2 exits: *Mat x2) -8/Materials -7/Factory (discovered 2 exits: [*Fac] / [*Low]) History --------- Turn | Location | Event 9 | -11/Junkyard | Discovered new exit (range 15) 120 | -11/Junkyard | Entered Materials 301 | -10/Materials | Build established: Mutant 484 | -10/Materials | Discovered new exit (range 12) 617 | -10/Materials | Discovered new exit (range 4) 878 | -10/Materials | Repaired Seismic Detector 905 | -10/Materials | Repaired Lgt. Treads 932 | -10/Materials | Repaired Lgt. Treads 958 | -10/Materials | Discovered new exit (range 12) 1158 | -10/Materials | Discovered new exit (range 5) 1480 | -10/Materials | Discovered new exit (range 12) 1692 | -10/Materials | Entered Mines 1903 | -10/Mines | Found a damaged Exp. Sensor Array with a note attached 1910 | -10/Mines | Found Prototype Device 1959 | -10/Mines | Received a Rocket Launcher from a helpful Derelict 2110 | -10/Mines | Discovered new exit (range 7) 2185 | -10/Mines | Discovered new exit (range 13) 2401 | -10/Mines | Found a hidden stash of uninstalled traps 2485 | -10/Mines | Learned Materials non-interactive machine intel 2561 | -10/Mines | Deemed a non-threat by the Exiles lab entrance 2562 | -10/Mines | Discovered new exit (range 5) 2570 | -10/Mines | Entered Exiles 2618 | -10/Exiles | Met 8R-AWN 2650 | -10/Exiles | Met EX-HEX 2736 | -10/Exiles | Met EX-DEC 2814 | -10/Exiles | Learned location of Zion (-7) 2914 | -10/Exiles | Discovered new exit (range 10) 2929 | -10/Exiles | Entered Mines 2947 | -9/Mines | Met a Derelict bent on vengeance 3198 | -9/Mines | Learned Materials garrison access intel 3662 | -9/Mines | Discovered new exit (range 7) 3707 | -9/Mines | Discovered new exit (range 14) 3826 | -9/Mines | Entered Materials 3826 | -8/Materials | Evolved 4 slots: Propulsion x2, Utility x2 3827 | -8/Materials | Loaded intel: 35 non-interactive machine locations 3828 | -8/Materials | Loaded intel: 1 garrison access location 3980 | -8/Materials | Lost 4 parts (1n1u2w) 4119 | -8/Materials | Build established: Scavenger-Mutant 4284 | -8/Materials | Crushed by falling debris 4315 | -8/Materials | Lost 3 parts (2n1w) 4627 | -8/Materials | Discovered new exit (range 14) 4906 | -8/Materials | Entered Factory 4906 | -7/Factory | Evolved 2 slots: Utility x2 5884 | -7/Factory | Discovered new exit (range 5) 6014 | -7/Factory | Build established: Hacker-Mutant 6035 | -7/Factory | Lost 4 parts (1p1n2u) 6652 | -7/Factory | Lost 3 parts (1n2u) 6729 | -7/Factory | Fabricated Hacking Suite? 6805 | -7/Factory | Lost 3 parts (2n1u) 6919 | -7/Factory | Build established: Mutant 6978 | -7/Factory | Identified Exp. Sensor Array 7225 | -7/Factory | Repaired Broken Exp. Sensor Array 7336 | -7/Factory | Build established: Hacker-Mutant 8052 | -7/Factory | Garrison activated, responded to threat 8147 | -7/Factory | Discovered new exit (range 3) 8264 | -7/Factory | Repaired Seismic Detector 8373 | -7/Factory | Garrison activated, responded to threat 8382 | -7/Factory | Core integrity fell below 50% 8675 | -7/Factory | Core integrity fell below 20% 8686 | -7/Factory | Destroyed by L-41 Fighter with Axe Last Messages --------------- 08675_ U-05 Engineer lays Concrete. 08676_ Destroyed Imp. Heat Sink. 08676_ R-06 Scavenger collects Lgt. Ion Engine. 08677_ Imp. Cooling System destroyed. 08677_ K-01 Serf collects debris. 08677_ U-05 Engineer builds a Wall. 08678_ G-47 Trooper destroyed. 08678_ Destroyed Lgt. Nuclear Core. 08678_ G-47 Trooper destroyed. 08678_ U-05 Engineer builds a Wall. 08679_ Rocket Launcher destroyed. 08680_ Dropped Hcp. Storage Unit. 08680_ R-06 Scavenger collects Wheel. 08680_ Dropped Mni. Assault Cannon. 08681_ U-05 Engineer builds a Wall. 08682_ U-05 Engineer lays Concrete. 08683_ Acquired 55 matter. 08684_ R-06 Scavenger collects Terrain Scanner. 08684_ U-05 Engineer lays Concrete. 08685_ U-05 Engineer builds a Wall. Map ----- +----------------------------------------------------+ | ???????????????????????????????????????????? """"" | | ??????????????????????"T"?????????????????? | | ??????????????????????????????????????????? """"" | | ????????????????????????????????????????? | | ??????????????????????????????????????????? """"" | | ????????????????????????????????????????? | | ??????????????????????????????????????????? """"" | | ????????????? ?????????????????????????? | | ????????????? ?w????????????w????????? """"" | | ??????????????! ??????????###########??## | | ???????????? ????#################### | | ????????????###+#????#######"""T"""########### T## | | ????????????## # ########### | | ????????????## ! """"""" # ##????????? | | ???????????### """"""" # ##????????? | | ???????????# # """"""" # ##????????? | | ????????????# "" """ # ##????????? | | ???????????## # ##????????? | | ???????????# % g ; ##????????? | | ????????????# % ! % # ##????????? | | ????????????## """ ! =/][ # ##????????? | | ????????????## "T !!!![!# !% ##????????? | | ????????????## """ [=!!%# != % ##????????? | | ????????????## ]] #u | ########### | | ????????????########## l #######+################ | | ????????????######## u@ | | ??????????????????## r | | ??????????????????## t """"" | | ??????????????????## "" F" | | ??????????????????## k "" "" | | ?????????????????? # | | ?????????????????? # | | ?????????????????? # ######+##### | | ?????????????????? # ## # | | ?????????????????? # ##?? ??? # | | ?????????????????? # ##? ??? # | | ???????????????????+ #?? ??? + | | ???????????????????# t + ??? # | | ???????????????????# ## ??? # | | ????????????????????? ## ??? ## ######+## | | ??????????????????????? ???? ???? ## ### | | ??????????????????????????????????????## ##???? ?? | | ??????????????????????????????????????## ##???? ?? | | ??????????????????????????????????????## ????????? | | ??????????????????????????????????????## ????????? | | ???????""?????????????????????????????## ????????? | | ???????""??""""""?""""""?????????????????????????? | | ???????"T??""""""?""""""?????????????????????????? | | ???????""??""""""?""""""?????????????????????????? | | ???????""??""""""?""""""?????????????????????????? | +----------------------------------------------------+ Best States ------------- Heat Dissipation 61 Energy Generation 14 Energy Capacity 265 Matter Stores 300 Matter Capacity 300 Sight Range 16 Terrain Scan Density 10 Armor Coverage 675 Resistance: KI 30 Resistance: EM 15 Evasion (%) 55 Recoil Reduction 4 Offensive Hacking 20 Defensive Hacking 10 Item Schematics ----------------- Hacking Suite | -8/Materials | Scanalyzed Imp. Titanium Leg | -7/Factory | Scanalyzed System Restoration Module | -7/Factory | Scanalyzed Rocket Launcher | -7/Factory | Scanalyzed Lrn. Tractor Beam | -7/Factory | Hacked Robot Schematics ------------------ None Fabricated ------------ Hacking Suite | x1 | -7/Factory Alien Tech Used ----------------- None Achievements -------------- None Challenges ------------ None Game ------ Seed RemoteTerrainAccelerator Manual? 0 Play Time 01:06:29 Cumulative 171.4 hours Start 2024.01.04 @ 15:38:27 End 2024.01.05 @ 15:46:09 Sessions 3 Manual Loads 0 Difficulty Rogue Special Mode None Game No. 150 Rogue 150 Adventurer 0 Explorer 0 Win Type - Total 1 Types 1/0/0/0/0/0/0/0/0 Lore% 55 Gallery% 68 Achievement% 53 Wizard Run 0 Options --------- ASCII 0 Keyboard 0 Movement Numpad Keybinds 0 Fullscreen 2 Font 18/Smallcaps Map View 76x50 Tactical HUD 1 Map Filters NONE Filters NONE Steam 1 RUN: 8309e3c7-f9db-43c1-b8ea-4693e696f62f